{"text_format":"1","workbook":"xlsx","n_sheets":3,"sheets":["Лист1","Лист2","Лист3"],"not_rendered":{"charts":0,"images":0,"macros":1,"external_links":0,"defined_names":0,"comments":0,"pivot_tables":0},"unopened":[],"bounds":{"document_bytes":16777216,"sheet_cells":100000,"rows_first":2000,"rows_last":500,"rows_between":2000,"halvings":0,"cell_chars":16384,"cell_head_chars":4096},"cells_cut":0,"cells_raw":0,"read":"whole","date_system":"1900"}

{"sheet":"Лист1","index":0,"n_rows":35,"n_cols":4,"rows_kept":35,"cut":false,"hidden":false,"merged":[]}
[]
[]
[null,"Наименование","Производитель"]
[null,"Агрегат насосный КАМАЗ ПЖД30 подогревателя ШААЗ","ШААЗ",{"$f":"Proizv(B4)","v":" ШААЗ"}]
[null,"Амортизатор КАМАЗ-5320,53212 (НПО РОСТАР)","(НПО РОСТАР)",{"$f":"Proizv(B5)","v":" РОСТАР"}]
[null,"Амортизатор ВАЗ-2121,21213 передний усиленный МАЗ,КАМАЗ кабины ГЗАА","ГЗАА"," ГЗАА"]
[null,"Амортизатор КАМАЗ кабины ОСВ","ОСВ"," ОСВ"]
[null,"Амортизатор КАМАЗ крепления трубок 6.5х13х22 ЧРТИ","ЧРТИ"," ЧРТИ"]
[null,"Амортизатор КАМАЗ сиденья водителя",null," КАМАЗ"]
[null,"Амортизатор КАМАЗ,ЛИАЗ-5256,6212,НЕФАЗ-5297 230/450 БААЗ",null," БААЗ"]
[null,"Амортизатор КАМАЗ,ПАЗ-3205 275/460 БААЗ",null," БААЗ"]
[null,"Амортизатор КАМАЗ,ПАЗ-3205 ГЗАА",null," ГЗАА"]
[null,"Амортизатор КАМАЗ-4308 275/450 БААЗ",null," БААЗ"]
[null,"Амортизатор КАМАЗ-4310, п/прицепа 300/485 БААЗ",null," БААЗ"]
[null,"Амортизатор КАМАЗ-4310, п/прицепа 300/485 ГЗАА",null," ГЗАА"]
[null,"Амортизатор КАМАЗ-5320,53212 (НПО РОСТАР)",null," РОСТАР"]
[null,"Амортизатор КАМАЗ-5511 платформы СБ",null," СБ"]
[null,"Амортизатор КАМАЗ-6520,65115 (НПО РОСТАР)","(НПО РОСТАР)"," РОСТАР"]
[null,"Амортизатор МАЗ,КАМАЗ 275/460 БААЗ",null," БААЗ"]
[null,"Амортизатор МАЗ,КАМАЗ,ПАЗ сиденья ГЗАА",null," ГЗАА"]
[null,"Амортизатор МАЗ,КАМАЗ-43118,КРАЗ,УРАЛ 300/475 БААЗ",null," БААЗ"]
[null,"Амортизатор МАЗ,КАМАЗ-65115,6520,УРАЛ-63685 325/500 KN","KN"," KN"]
[null,"Амортизатор МАЗ,КАМАЗ-65115,6520,УРАЛ-63685 325/500 ГЗАА",null," ГЗАА"]
[null,"Арматура омывателя универсальная СБ передняя силикон",null," СБ"]
[null,"Ароматизатор воздуха КАМАЗ",null," КАМАЗ"]
[null,"Бак КАМАЗ масляный (280х390х460) АВТОТЕХНОЛОГИЯ","АВТОТЕХНОЛОГИЯ"," АВТОТЕХНОЛОГИЯ"]
[null,"Бак КАМАЗ масляный (561х480х348) 85л СБ БАКОР",null," БАКОР"]
[null,"Бак КАМАЗ-65201 масляный 125л ОАО НЕФАЗ",null," НЕФАЗ"]
[null,"Бак топливный КАМАЗ 125л (520х492х710) под полуоборотную пробку без крышки (ОАО КАМАЗ)",null," КАМАЗ"]
[null,"Бак топливный КАМАЗ 170л (520х492х950) без крышки (одно отверстие) (ОАО КАМАЗ)","(ОАО КАМАЗ)"," КАМАЗ"]
[null,"Бак топливный КАМАЗ 170л (520х492х950) под полуоборотную пробку без крышки (ОАО КАМАЗ)",null," КАМАЗ"]
[null,"Бак топливный КАМАЗ 210л (530х650х750) под полуобор.пробку без крышки (одно отверстие) (ОАО КАМАЗ)",null," КАМАЗ"]
[null,"Бак топливный КАМАЗ 210л (530х650х750) под полуоборотную пробку без крышки (ОАО КАМАЗ)",null," КАМАЗ"]
[null,"Бак топливный КАМАЗ 250л (492х520х1360) без крышки (ОАО КАМАЗ)",null," КАМАЗ"]
[null,"Бак топливный КАМАЗ 350л (530х650х1200) без крышки (одно отверстие) (ОАО КАМАЗ)",null," КАМАЗ"]

{"sheet":"Лист2","index":1,"n_rows":0,"n_cols":0,"rows_kept":0,"cut":false,"hidden":false,"merged":[]}

{"sheet":"Лист3","index":2,"n_rows":0,"n_cols":0,"rows_kept":0,"cut":false,"hidden":false,"merged":[]}